bitfinex/quotes_SOLUSD_20241024
["timestamp","ask_amount","ask_price","bid_price","bid_amount"]
[1729805659265,0.12549,177.87,177.82,9.83511061]
[1729805660277,0.12549,177.86,177.82,9.83511061]
[1729805660471,0.25098,177.86,177.82,9.83511061]
[1729805661058,0.25098,177.86,177.8,9.83511061]
[1729805661458,0.12549,177.84,177.8,9.83511061]
[1729805661679,0.25098,177.83,177.8,9.83511061]
[1729805663493,0.25098,177.83,177.81,9.83511061]
[1729805668279,0.25098,177.83,177.82,9.83511061]
[1729805668461,0.37647,177.83,177.82,9.83511061]
[1729805682185,0.25098,177.81,177.73,20.0]
[1729805682494,0.25098,177.81,177.79,9.83511061]
[1729805682695,0.25098,177.81,177.8,9.83511061]
[1729805682894,0.37647,177.81,177.8,9.83511061]
[1729805684701,0.37647,177.81,177.79,9.83511061]
[1729805685195,0.37647,177.81,177.8,9.83511061]
[1729805689494,0.12549,177.8,177.79,9.83511061]
[1729805696090,0.12549,177.8,177.72,22.3928]
[1729805696288,0.12549,177.79,177.72,22.3928]
[1729805696494,0.37647,177.79,177.78,9.83511061]
[1729805696886,0.37647,177.79,177.78,6.83511061]
[1729805699010,0.37647,177.79,177.72,22.3928]
[1729805699203,0.37647,177.79,177.78,9.83511061]
[1729805702684,0.12549,177.78,177.72,22.3928]
[1729805702888,0.12549,177.77,177.72,22.3928]
[1729805703996,0.25098,177.77,177.72,22.3928]
[1729805704503,0.37647,177.77,177.76,9.83511061]
[1729805709019,23.653354,177.8,177.76,9.83511061]
[1729805709202,0.37647,177.79,177.77,9.83511061]
[1729805712619,0.37647,177.79,177.72,22.3928]
[1729805712800,0.37647,177.79,177.77,9.83511061]
[1729805715328,0.37647,177.79,177.72,22.3928]
[1729805715616,0.37647,177.79,177.77,9.83511061]
[1729805717427,0.37647,177.79,177.76,9.83511061]
[1729805730837,23.653354,177.8,177.78,9.83511061]
[1729805731014,0.1,177.84,177.79,9.83511061]
[1729805731221,0.1,177.84,177.8,9.83511061]
[1729805731532,0.22549,177.84,177.8,9.83511061]
[1729805732230,0.12549,177.82,177.81,9.83511061]
[1729805732430,6.2623,177.9,177.81,9.83511061]
[1729805732620,5.6216,177.89,177.84,9.83511061]
[1729805732821,0.12549,177.87,177.84,9.83511061]
[1729805733839,24.153354,177.87,177.85,9.83511061]
[1729805734131,0.12549,177.87,177.85,9.83511061]
[1729805734345,0.25098,177.87,177.86,9.83511061]
[1729805734645,10.11123116,177.9,177.86,9.83511061]
[1729805734942,10.11123116,177.9,177.89,9.83511061]
[1729805737340,12.6394493,177.98,177.89,9.83511061]
[1729805737527,24.027864,177.97,177.96,9.83511061]
[1729805738038,10.11123116,178.04,177.96,9.83511061]
[1729805738228,15.72813116,178.04,178.0,9.83511061]
[1729805738627,0.12549,178.03,177.99,9.83511061]
[1729805738939,15.72813116,178.04,177.99,9.83511061]
[1729805739433,24.153354,178.03,177.99,9.83511061]
[1729805740443,0.25098,178.03,177.99,9.83511061]
[1729805742026,0.12549,178.01,177.99,9.83511061]
[1729805742235,6.1596,178.09,178.0,9.83511061]
[1729805742438,20.0,178.07,178.01,9.83511061]
[1729805743658,24.153354,178.06,178.01,9.83511061]
[1729805744020,23.776884,178.06,178.01,9.83511061]
[1729805744221,9.83511061,178.09,178.02,9.83511061]
[1729805745062,0.12549,178.08,178.02,9.83511061]
[1729805745225,0.12549,178.08,178.04,9.83511061]
[1729805745428,15.44981061,178.11,178.04,9.83511061]
[1729805745729,0.12549,178.1,178.05,9.83511061]
[1729805746249,5.6147,178.11,178.05,9.83511061]
[1729805746434,0.12549,178.1,178.05,9.83511061]
[1729805746846,24.153354,178.1,178.05,9.83511061]
[1729805747828,24.153354,178.1,178.01,15.5474]
[1729805748145,24.153354,178.1,178.04,9.83511061]
[1729805748346,33.98846461,178.1,178.04,9.83511061]
[1729805751248,0.12549,178.08,178.04,9.83511061]
[1729805751426,0.37647,178.08,178.04,9.83511061]
[1729805754026,0.37647,178.08,178.05,9.83511061]
[1729805758847,5.6132,178.15,178.06,9.83511061]
[1729805759047,9.83511061,178.13,178.06,9.83511061]
[1729805759254,0.12549,178.12,178.06,9.83511061]
[1729805759838,5.73959,178.12,178.06,9.83511061]
[1729805760146,24.027864,178.11,178.06,9.83511061]
[1729805760856,0.12549,178.09,178.01,15.5474]
[1729805761033,0.12549,178.08,178.03,9.83511061]
[1729805761559,0.12549,178.07,178.01,15.5474]
[1729805761732,0.25098,178.07,178.03,9.83511061]
[1729805761940,0.25098,178.07,178.01,15.5474]
[1729805762133,0.25098,178.07,178.03,9.83511061]
[1729805762361,0.25098,178.07,178.05,9.83511061]
[1729805763763,0.25098,178.07,178.04,9.83511061]
[1729805768859,14.134,178.14,178.05,9.83511061]
[1729805769052,9.83511061,178.12,178.06,9.83511061]
[1729805769363,0.12549,178.11,178.05,9.83511061]
[1729805769742,5.74019,178.11,178.05,9.83511061]
[1729805770056,0.12549,178.09,178.05,9.83511061]
[1729805772137,24.027864,178.1,178.05,9.83511061]
[1729805772348,0.25098,178.1,178.07,9.83511061]
[1729805773362,5.6138,178.13,178.08,9.83511061]
[1729805773663,5.6135,178.14,178.09,9.83511061]
[1729805776244,24.027864,178.14,178.09,9.83511061]
[1729805776758,29.641464,178.14,178.09,9.83511061]
[1729805777147,24.027864,178.14,178.11,9.83511061]
[1729805777353,0.25098,178.14,178.12,9.83511061]
[1729805778443,0.25098,178.14,178.11,9.83511061]
[1729805779564,0.25098,178.14,178.1,25.77321061]
[1729805780866,0.25098,178.14,178.11,9.83511061]
[1729805781357,0.25098,178.14,178.1,25.77321061]
[1729805782959,0.25098,178.14,178.11,9.83511061]
[1729805784346,0.12549,178.11,178.01,15.0336]
[1729805784543,0.12549,178.11,178.07,9.83511061]
[1729805786053,24.027864,178.1,178.07,9.83511061]
[1729805788374,24.027864,178.1,178.01,15.0336]
[1729805788562,23.902374,178.09,178.01,15.0336]
[1729805788867,0.25098,178.08,178.04,9.83511061]
[1729805792071,0.12549,178.07,177.95,2.30165223]
[1729805792262,24.027864,178.05,177.94,21.7988]
[1729805792464,24.027864,178.05,178.0,9.83511061]
[1729805792662,24.027864,178.05,177.94,21.6988]
[1729805792861,0.12549,178.04,177.99,9.83511061]
[1729805793874,24.027864,178.03,177.99,9.83511061]
[1729805797563,23.776884,178.02,177.99,9.83511061]
[1729805798178,24.027864,178.03,177.99,9.83511061]
[1729805798480,24.027864,178.03,178.0,9.83511061]
[1729805798882,24.027864,178.03,177.99,9.83511061]
[1729805800481,0.12549,178.02,177.94,21.6988]
[1729805800782,0.12549,178.02,177.98,9.83511061]
[1729805801165,24.027864,178.01,177.98,9.83511061]
[1729805803478,24.027864,178.01,177.97,9.83511061]
[1729805803676,24.027864,178.01,177.98,9.83511061]
[1729805807174,7.16397358,178.11,178.0,9.83511061]
[1729805807474,5.6154,178.08,178.03,9.83511061]
[1729805807662,28.169,178.14,177.95,0.1]
[1729805807663,5.6138,178.13,178.05,9.83511061]
[1729805807865,9.83511061,178.11,178.05,9.83511061]
[1729805808268,0.12549,178.1,178.05,9.83511061]
[1729805808667,24.027864,178.08,178.05,9.83511061]
[1729805808877,24.027864,178.08,178.04,9.83511061]
[1729805809676,9.83511061,178.11,178.05,9.83511061]
[1729805809874,0.12549,178.09,178.05,9.83511061]
[1729805811494,23.902374,178.08,178.05,9.83511061]
[1729805812776,29.517774,178.08,178.05,9.83511061]
[1729805814572,29.517774,178.08,178.04,9.83511061]
[1729805820384,29.517774,178.08,178.01,21.7553]
[1729805820687,29.517774,178.08,178.04,9.83511061]
[1729805823105,0.12549,178.06,178.01,21.7553]
[1729805823289,0.12549,178.06,178.04,9.83511061]
[1729805823627,24.153354,178.07,178.04,9.83511061]
[1729805825193,5.616,178.06,178.01,21.7553]
[1729805825391,5.616,178.06,178.04,9.83511061]
[1729805826402,5.616,178.06,178.01,21.7553]
[1729805826588,5.616,178.06,178.04,9.83511061]
[1729805827490,5.616,178.06,178.01,15.5401]
[1729805827693,24.027864,178.05,177.97,21.6559]
[1729805827890,24.027864,178.05,178.01,9.83511061]
[1729805829006,5.6167,178.04,178.01,9.83511061]
[1729805829702,24.027864,178.03,178.0,9.83511061]
[1729805830105,24.027864,178.03,177.99,9.83511061]
[1729805830805,5.86808,178.03,177.99,9.83511061]
[1729805830996,23.776884,178.02,177.99,9.83511061]
[1729805833388,29.394184,178.02,177.99,9.83511061]
[1729805833588,29.394184,178.02,177.97,15.5568]
[1729805833889,0.25098,178.01,177.99,9.83511061]
[1729805834415,0.25098,178.01,178.0,9.83511061]
[1729805835104,0.25098,178.01,177.93,21.6559]
[1729805835310,0.25098,178.01,178.0,9.83511061]
[1729805836008,23.776884,178.0,177.93,60.99634244]
[1729805836187,0.25098,177.99,177.93,60.99634244]
[1729805836389,0.25098,177.99,177.93,21.6559]
[1729805836714,0.25098,177.99,177.96,9.83511061]
[1729805836900,0.25098,177.99,177.97,9.83511061]
[1729805837300,0.25098,177.99,177.96,9.83511061]
[1729805837508,0.25098,177.99,177.97,9.83511061]
[1729805838094,0.25098,177.99,177.96,9.83511061]
[1729805838295,0.12549,177.98,177.89,21.6559]
[1729805838506,0.25098,177.97,177.94,9.83511061]
[1729805838713,0.12549,177.96,177.93,9.83511061]
[1729805840298,0.12549,177.96,177.89,15.5568]
[1729805840619,24.027864,177.94,177.91,9.83511061]
[1729805842000,0.25098,177.93,177.85,15.5568]
[1729805842216,0.25098,177.92,177.9,9.83511061]
[1729805843505,0.25098,177.9,177.85,15.5568]
[1729805843709,0.25098,177.9,177.87,9.83511061]
[1729805843927,0.25098,177.9,177.88,9.83511061]
[1729805844302,0.25098,177.9,177.87,9.83511061]
[1729805845518,5.87208,177.9,177.87,9.83511061]
[1729805845718,0.25098,177.9,177.88,9.83511061]
[1729805845916,0.12549,177.88,177.86,9.83511061]
[1729805846117,0.25098,177.88,177.86,9.83511061]
[1729805846635,0.25098,177.86,177.84,9.83511061]
[1729805846806,0.12549,177.85,177.84,9.83511061]
[1729805847414,0.12549,177.85,177.77,15.1489]
[1729805847719,23.902374,177.85,177.77,15.1489]
[1729805847915,0.25098,177.84,177.83,9.83511061]
[1729805848126,0.25098,177.84,177.77,15.1489]
[1729805848807,0.25098,177.84,177.82,9.83511061]
[1729805849926,0.25098,177.84,177.77,15.1489]
[1729805849927,0.25098,177.83,177.77,15.1489]
[1729805850133,0.37647,177.82,177.81,9.83511061]
[1729805850438,24.153354,177.82,177.81,9.83511061]
[1729805850819,0.37647,177.82,177.77,15.1489]
[1729805851148,0.37647,177.82,177.81,9.83511061]
[1729805852038,0.12549,177.81,177.75,39.34044244]
[1729805852205,0.25098,177.8,177.73,15.1489]
[1729805852528,0.37647,177.8,177.79,9.83511061]
[1729805853111,0.37647,177.8,177.73,15.1489]
[1729805853308,0.37647,177.8,177.68,21.1493]
[1729805853309,0.25098,177.78,177.68,21.1493]
[1729805853638,0.25098,177.78,177.74,9.83511061]
[1729805853816,0.25098,177.76,177.74,9.83511061]
[1729805854228,0.25098,177.76,177.68,21.1493]
[1729805854420,0.25098,177.76,177.73,9.83511061]
[1729805856125,0.25098,177.76,177.74,9.83511061]
[1729805856623,0.25098,177.76,177.73,9.83511061]
[1729805857027,0.25098,177.76,177.74,9.83511061]
[1729805857233,0.25098,177.76,177.73,9.83511061]
[1729805857429,0.25098,177.76,177.66,39.34044244]
[1729805857430,0.12549,177.75,177.72,9.83511061]
[1729805858620,0.25098,177.76,177.73,9.83511061]
[1729805858819,0.25098,177.76,177.74,9.83511061]
[1729805859027,0.25098,177.76,177.73,9.83511061]
[1729805859028,0.12549,177.75,177.73,9.83511061]
[1729805859340,0.12549,177.75,177.74,9.83511061]
[1729805859720,0.12549,177.75,177.73,9.83511061]
[1729805862227,5.6233,177.84,177.74,9.83511061]
[1729805862421,5.6233,177.84,177.79,9.83511061]
[1729805862646,0.12549,177.83,177.79,9.83511061]
[1729805862955,0.12549,177.83,177.8,9.83511061]
[1729805863138,5.74849,177.85,177.8,9.83511061]
[1729805863447,0.12549,177.84,177.8,9.83511061]
[1729805863627,23.902374,177.84,177.8,9.83511061]
[1729805864028,0.12549,177.83,177.8,9.83511061]
[1729805864322,9.83511061,177.82,177.71,15.6619]
[1729805864540,0.12549,177.81,177.76,9.83511061]
[1729805864747,0.12549,177.81,177.77,9.83511061]
[1729805865242,0.12549,177.81,177.78,9.83511061]
[1729805866735,5.6214,177.89,177.8,9.83511061]
[1729805867034,5.6214,177.89,177.84,9.83511061]
[1729805867236,5.6214,177.89,177.75,39.34044244]
[1729805867237,0.12549,177.88,177.74,0.1]
[1729805867445,0.12549,177.88,177.83,9.83511061]
[1729805867825,24.027864,177.88,177.83,9.83511061]
[1729805868133,0.37647,177.87,177.83,9.83511061]
[1729805869346,0.12549,177.85,177.83,9.83511061]
[1729805869557,0.12549,177.84,177.76,20.0]
[1729805873148,0.12549,177.84,177.83,9.83511061]
[1729805873547,24.153354,177.82,177.7,6.5691]
[1729805873859,24.153354,177.82,177.77,9.83511061]
[1729805874038,24.153354,177.82,177.78,9.83511061]
[1729805874443,24.153354,177.82,177.77,9.83511061]
[1729805875750,6.00017,177.82,177.77,9.83511061]
[1729805875943,0.12549,177.8,177.77,9.83511061]
[1729805876150,0.12549,177.83,177.79,9.83511061]
[1729805876360,0.12549,177.83,177.81,9.83511061]
[1729805877056,0.25098,177.84,177.81,9.83511061]
[1729805879056,0.25098,177.84,177.82,9.83511061]
[1729805880244,0.25098,177.84,177.81,9.83511061]
[1729805880946,0.25098,177.84,177.8,9.83511061]
[1729805881141,0.12549,177.83,177.8,9.83511061]
[1729805883844,0.12549,177.83,177.81,9.83511061]
[1729805886038,0.25098,177.83,177.81,9.83511061]
[1729805886243,0.12549,177.82,177.81,9.83511061]
[1729805889748,0.25098,177.82,177.71,18.06984001]
[1729805889949,0.25098,177.82,177.8,9.83511061]
[1729805890853,0.12549,177.81,177.71,15.7619]
[1729805891053,0.12549,177.8,177.78,9.83511061]
[1729805891963,24.153354,177.8,177.79,9.83511061]
[1729805892850,24.153354,177.8,177.78,9.83511061]
[1729805893245,24.153354,177.8,177.72,20.0]
[1729805893464,0.37647,177.8,177.78,9.83511061]
[1729805894967,24.153354,177.79,177.78,9.83511061]
[1729805898866,0.12549,177.78,177.67,15.4495]
[1729805899165,0.25098,177.76,177.73,9.83511061]
[1729805899362,0.12549,177.75,177.73,9.83511061]
[1729805899559,0.12549,177.74,177.73,9.83511061]
[1729805899767,0.25098,177.74,177.73,9.83511061]
[1729805900059,0.37647,177.74,177.73,9.83511061]
[1729805903565,0.12549,177.73,177.72,9.83511061]
[1729805903872,24.153354,177.73,177.72,9.83511061]
[1729805905365,16.1594,177.84,177.72,9.83511061]
[1729805905669,11.6937,177.83,177.78,9.83511061]
[1729805905967,16.0594,177.84,177.79,9.83511061]
[1729805905968,21.6824,177.84,177.79,9.83511061]
[1729805906359,0.12549,177.83,177.79,9.83511061]
[1729805907371,24.153354,177.83,177.79,9.83511061]
[1729805908959,29.776954,177.83,177.79,9.83511061]
[1729805910572,29.776954,177.83,177.74,15.5938]
[1729805910877,39.61206461,177.83,177.76,9.83511061]
[1729805911851,29.776954,177.83,177.77,9.83511061]
[1729805912356,24.153354,177.83,177.79,9.83511061]
[1729805912573,24.153354,177.83,177.74,15.5938]
[1729805912574,11.7702,177.87,177.8,9.83511061]
[1729805912865,21.60531061,177.87,177.8,9.83511061]
[1729805913074,0.12549,177.86,177.8,9.83511061]
[1729805913267,21.60531061,177.87,177.8,9.83511061]
[1729805913456,0.12549,177.86,177.8,9.83511061]
[1729805913766,5.6222,177.87,177.82,9.83511061]
[1729805913972,5.6222,177.87,177.83,9.83511061]
[1729805914375,5.6213,177.9,177.85,9.83511061]
[1729805915159,0.12549,177.89,177.85,9.83511061]
[1729805915789,5.6213,177.9,177.85,9.83511061]
[1729805915958,24.027864,177.89,177.85,9.83511061]
[1729805916258,0.12549,177.88,177.85,9.83511061]
[1729805916456,0.12549,177.87,177.85,9.83511061]
[1729805916859,0.12549,177.86,177.85,9.83511061]
[1729805917074,0.12549,177.87,177.85,9.83511061]
[1729805917262,0.12549,177.87,177.75,39.34044244]
[1729805917263,0.37647,177.88,177.86,9.83511061]
[1729805917467,0.37647,177.88,177.87,9.83511061]
[1729805919186,0.37647,177.88,177.81,15.1776]
[1729805919479,0.25098,177.88,177.86,9.83511061]
[1729805919676,9.83511061,177.93,177.87,9.83511061]
[1729805919857,5.6206,177.92,177.87,9.83511061]
[1729805920059,0.12549,177.91,177.87,9.83511061]
[1729805920372,0.12549,177.91,177.86,9.83511061]
[1729805920981,24.027864,177.91,177.86,9.83511061]
[1729805922985,29.648764,177.91,177.86,9.83511061]
[1729805926984,24.153354,177.89,177.87,9.83511061]
[1729805927369,0.37647,177.89,177.87,9.83511061]
[1729805927571,23.776884,177.91,177.87,9.83511061]
[1729805927977,0.37647,177.9,177.87,9.83511061]
[1729805929390,0.37647,177.9,177.88,9.83511061]
[1729805929784,23.776884,177.91,177.88,9.83511061]
[1729805929967,23.776884,177.91,177.89,9.83511061]
[1729805930169,23.776884,177.91,177.88,9.83511061]
[1729805930468,0.25098,177.91,177.89,9.83511061]
[1729805930875,0.25098,177.91,177.84,39.34044244]
[1729805930876,0.25098,177.91,177.88,9.83511061]
[1729805933903,0.25098,177.91,177.89,9.83511061]
[1729805934990,0.25098,177.91,177.88,9.83511061]
[1729805935571,0.25098,177.91,177.87,9.83511061]
[1729805937677,0.25098,177.91,177.88,9.83511061]
[1729805937678,0.12549,177.91,177.88,9.83511061]
[1729805937879,24.153354,177.91,177.88,9.83511061]
[1729805939981,0.12549,177.88,177.85,9.83511061]
[1729805941002,23.902374,177.88,177.85,9.83511061]
[1729805947387,0.12549,177.86,177.81,15.1776]
[1729805947585,0.12549,177.86,177.83,9.83511061]
[1729805948399,23.902374,177.86,177.83,9.83511061]
[1729805949302,0.12549,177.86,177.85,9.83511061]
[1729805949480,0.12549,177.86,177.84,9.83511061]
[1729805949882,0.12549,177.86,177.85,9.83511061]
[1729805950806,0.12549,177.86,177.84,9.83511061]
[1729805953689,14.0519,177.92,177.85,9.83511061]
[1729805953896,5.6208,177.91,177.85,9.83511061]
[1729805954093,0.12549,177.9,177.85,9.83511061]
[1729805954598,0.12549,177.88,177.81,15.1776]
[1729805954903,0.37647,177.88,177.83,9.83511061]
[1729805955888,23.776884,177.89,177.83,9.83511061]
[1729805955889,24.153354,177.86,177.83,9.83511061]
[1729805958394,0.12549,177.83,177.76,15.6442]
[1729805958592,0.12549,177.83,177.79,9.83511061]
[1729805959693,10.21158061,177.81,177.7,21.7195]
[1729805959903,23.902374,177.78,177.75,9.83511061]
[1729805960894,29.527374,177.78,177.7,21.7195]
[1729805961095,29.527374,177.78,177.74,9.83511061]
[1729805961296,0.12549,177.76,177.73,9.83511061]
[1729805961512,0.12549,177.76,177.7,21.7195]
[1729805961513,0.12549,177.76,177.74,9.83511061]
[1729805963302,23.902374,177.76,177.74,9.83511061]
[1729805964989,24.153354,177.76,177.75,9.83511061]
[1729805965308,23.902374,177.76,177.74,9.83511061]
[1729805965512,0.12549,177.76,177.73,9.83511061]
[1729805966405,0.12549,177.76,177.74,9.83511061]
[1729805967213,0.12549,177.76,177.73,9.83511061]
[1729805967721,5.75129,177.76,177.73,9.83511061]
[1729805970414,5.6233,177.83,177.75,9.83511061]
[1729805970611,5.6233,177.83,177.7,21.7195]
[1729805970612,15.45841061,177.83,177.77,9.83511061]
[1729805970811,9.83511061,177.81,177.71,20.0]
[1729805971013,0.12549,177.79,177.75,9.83511061]
[1729805972425,5.75019,177.79,177.75,9.83511061]
[1729805973907,0.12549,177.79,177.75,9.83511061]
[1729805975314,0.12549,177.79,177.71,20.0]
[1729805975532,5.75029,177.79,177.75,9.83511061]
[1729805976630,5.75029,177.79,177.7,21.7195]
[1729805976932,5.75029,177.79,177.75,9.83511061]
[1729805977132,0.12549,177.77,177.7,21.7195]
[1729805977340,0.12549,177.77,177.73,9.83511061]
[1729805978758,24.027864,177.76,177.73,9.83511061]
[1729805980637,24.027864,177.76,177.74,9.83511061]
[1729805980818,0.25098,177.76,177.73,9.83511061]
[1729805981018,0.25098,177.76,177.7,21.7195]
[1729805981219,0.25098,177.76,177.73,9.83511061]
[1729805982139,24.027864,177.74,177.66,15.8768]
[1729805982319,24.027864,177.74,177.7,9.83511061]
[1729805983630,0.25098,177.74,177.7,9.83511061]
[1729805983831,5.87708,177.74,177.7,9.83511061]
[1729805985130,5.87708,177.74,177.71,9.83511061]
[1729805986048,5.87708,177.74,177.66,15.8768]
[1729805986226,5.87708,177.74,177.71,9.83511061]
[1729805987141,5.87708,177.74,177.72,9.83511061]
[1729805987347,5.87708,177.74,177.71,9.83511061]
[1729805987645,0.25098,177.74,177.72,9.83511061]
[1729805988026,5.87718,177.74,177.72,9.83511061]
[1729805988543,0.25098,177.74,177.72,9.83511061]
[1729805989026,0.12549,177.73,177.66,15.8768]
[1729805989232,23.902374,177.73,177.7,9.83511061]
[1729805989556,23.902374,177.73,177.66,55.21724244]
[1729805989557,23.902374,177.73,177.71,9.83511061]
[1729805990453,29.528874,177.73,177.71,9.83511061]
[1729805991151,0.12549,177.71,177.7,9.83511061]
[1729805991840,0.12549,177.71,177.66,15.8768]
[1729805992029,0.12549,177.71,177.7,9.83511061]
[1729805992427,0.25098,177.7,177.59,15.8768]
[1729805992629,0.12549,177.68,177.59,15.8768]
[1729805992937,0.37647,177.68,177.65,9.83511061]
[1729805993769,6.00467,177.68,177.65,9.83511061]
[1729805993952,23.776884,177.67,177.59,15.8768]
[1729805994153,23.776884,177.67,177.65,9.83511061]
[1729805996235,0.37647,177.68,177.66,9.83511061]
[1729805996451,23.776884,177.69,177.67,9.83511061]
[1729805996652,23.776884,177.69,177.68,9.83511061]
[1729805996825,5.85198174,177.78,177.68,9.83511061]
[1729805997029,15.46001061,177.78,177.71,9.83511061]
[1729805997244,0.12549,177.77,177.71,9.83511061]
[1729805997634,15.46001061,177.78,177.71,9.83511061]
[1729805997956,0.12549,177.77,177.72,9.83511061]
[1729805998148,24.153354,177.77,177.71,9.83511061]
[1729805998535,0.12549,177.74,177.71,9.83511061]
[1729805998761,0.12549,177.74,177.65,15.8768]
[1729805998934,0.12549,177.74,177.71,9.83511061]
[1729806000235,0.12549,177.74,177.7,9.83511061]
[1729806000236,0.12549,177.72,177.7,9.83511061]
[1729806000536,5.6239,177.81,177.71,9.83511061]
[1729806000739,15.45901061,177.81,177.66,59.44044244]
[1729806000938,0.1,177.86,177.77,9.83511061]
[1729806001263,5.6227,177.85,177.73,15.8768]
[1729806001445,16.1976,177.87,177.82,9.83511061]
[1729806001643,5.6208,177.91,177.86,9.83511061]
[1729806001859,5.6204,177.93,177.89,9.83511061]
[1729806002639,0.12549,177.92,177.89,9.83511061]
[1729806002837,5.6204,177.93,177.81,15.9768]
[1729806003158,9.83511061,177.92,177.85,9.83511061]
[1729806003538,0.25098,177.9,177.85,9.83511061]
[1729806003739,0.25098,177.9,177.86,9.83511061]
[1729806003947,0.12549,177.9,177.85,9.83511061]
[1729806004143,5.74679,177.9,177.85,9.83511061]
[1729806004357,23.902374,177.89,177.86,9.83511061]
[1729806004736,23.902374,177.89,177.87,9.83511061]
[1729806005036,23.902374,177.89,177.86,9.83511061]
[1729806006252,0.12549,177.9,177.87,15.36520059]
[1729806006456,0.12549,177.9,177.81,15.8768]
[1729806006457,24.027864,177.91,177.89,15.36520059]
[1729806007555,5.74629,177.92,177.89,15.36520059]
[1729806007859,23.902374,177.92,177.87,15.36520059]
[1729806008045,20.98480059,177.95,177.89,15.36520059]
[1729806008455,0.12549,177.94,177.89,15.36520059]
[1729806008639,20.98480059,177.95,177.89,15.36520059]
[1729806008840,15.36520059,177.94,177.88,15.36520059]
[1729806009037,5.6193,177.96,177.89,15.36520059]
[1729806009244,15.36520059,177.95,177.89,15.36520059]
[1729806009555,5.6193,177.96,177.9,15.36520059]
[1729806009755,5.74369,177.99,177.91,15.36520059]
[1729806009940,15.36520059,177.97,177.91,15.36520059]
[1729806011055,24.027864,177.97,177.92,15.36520059]
[1729806011449,21.10939059,177.98,177.92,15.36520059]
[1729806011648,20.98390059,177.98,177.92,15.36520059]
[1729806012366,5.6187,177.98,177.93,15.36520059]
[1729806012841,20.98390059,177.98,177.92,15.36520059]
[1729806013242,20.98390059,177.98,177.91,15.36520059]
[1729806014438,20.98390059,177.98,177.92,15.36520059]
[1729806014644,20.98390059,177.98,177.91,15.36520059]
[1729806015169,29.772354,177.97,177.91,15.36520059]
[1729806015467,45.13755459,177.97,177.91,15.36520059]
[1729806016863,5.619,177.97,177.91,15.36520059]
[1729806017459,20.98420059,177.97,177.91,15.36520059]
[1729806017766,5.619,177.97,177.91,15.36520059]
[1729806019470,15.36520059,177.97,177.91,15.36520059]
[1729806020671,20.98430059,177.97,177.91,15.36520059]
[1729806024367,20.98430059,177.97,177.9,31.00740059]
[1729806024672,24.153354,178.0,177.9,31.00740059]
[1729806024673,15.36520059,177.94,177.9,15.6422]
[1729806026466,20.98460059,177.96,177.9,31.00740059]
[1729806028258,9.82926174,177.96,177.9,25.47146174]
[1729806028461,9.82926174,177.97,177.9,25.47146174]
[1729806029468,5.6192,177.96,177.9,25.47146174]
[1729806032173,9.82926174,177.96,177.9,15.6422]
[1729806033257,15.44876174,177.96,177.9,15.6422]
[1729806035166,29.645164,178.02,177.92,9.82926174]
[1729806035479,9.82926174,177.99,177.92,9.82926174]
[1729806036175,5.6186,177.98,177.92,9.82926174]
[1729806036678,5.6186,177.98,177.93,9.82926174]
[1729806036971,5.6183,177.99,177.93,9.82926174]
[1729806037177,14.043,178.03,177.95,9.82926174]
[1729806037386,9.82926174,178.01,177.95,9.82926174]
[1729806037570,15.44656174,178.02,177.95,9.82926174]
[1729806038079,5.6173,178.02,177.96,9.82926174]
[1729806038376,15.44656174,178.02,177.95,9.82926174]
[1729806039465,5.6173,178.02,177.96,32.25886174]
[1729806039978,15.44656174,178.02,177.96,32.25886174]
[1729806040178,5.6173,178.02,177.96,32.25886174]
[1729806040487,15.44656174,178.02,177.96,32.25886174]
[1729806040781,9.82926174,178.03,177.97,9.82926174]
[1729806041075,5.6163,178.05,177.97,9.82926174]
[1729806041282,9.82926174,178.06,178.0,20.0]
[1729806041482,9.82926174,178.06,178.0,29.82926174]
[1729806042065,15.44496174,178.07,178.0,29.82926174]
[1729806042868,9.82926174,178.07,178.01,9.82926174]
[1729806043269,5.6155,178.08,178.03,9.82926174]
[1729806045586,5.6155,178.08,178.02,9.82926174]
[1729806046963,5.6155,178.08,177.99,0.2]
[1729806047172,5.6155,178.08,178.02,9.82926174]
[1729806047658,14.44476174,178.08,178.02,9.82926174]
[1729806050488,9.82926174,178.07,178.01,9.82926174]